fUST/lending_fUST_20241003
["ID","MTS","AMOUNT","RATE_DAILY","PERIOD"]
[339721008,1727893599269,-500.0,0.00013698,2]
[339721009,1727893599310,-500.0,0.00013698,2]
[339721010,1727893599353,-500.0,0.00013698,2]
[339721011,1727893599396,-640.88,0.00013698,2]
[339721012,1727893599439,-3315.76,0.00013698,2]
[339721013,1727893599482,-500.0,0.00013698,2]
[339721014,1727893599526,-500.0,0.00013698,2]
[339721015,1727893599577,-528.57,0.00013698,2]
[339721016,1727893599621,-500.0,0.00013698,2]
[339721017,1727893599663,-500.0,0.00013698,2]
[339721018,1727893599703,-500.0,0.00013698,2]
[339721019,1727893599743,-500.0,0.00013698,2]
[339721020,1727893599791,-555.82,0.00013698,2]
[339721021,1727893599832,-500.0,0.00013698,2]
[339721022,1727893599880,-697.21,0.00013698,2]
[339721023,1727893599923,-500.0,0.00013698,2]
[339721024,1727893599972,-593.43,0.00013698,2]
[339721025,1727893600021,-500.0,0.00013698,2]
[339721026,1727893600062,-500.0,0.00013698,2]
[339721027,1727893600102,-3396.64,0.00013698,2]
[339721028,1727893600142,-500.0,0.00013698,2]
[339721029,1727893600184,-553.84,0.00013698,2]
[339721030,1727893600228,-678.53,0.00013698,2]
[339721031,1727893600270,-500.0,0.00013698,2]
[339721032,1727893600309,-500.0,0.00013698,2]
[339721033,1727893600349,-811.95,0.00013698,2]
[339721034,1727893600390,-500.0,0.00013698,2]
[339721035,1727893600429,-500.0,0.00013698,2]
[339721036,1727893600469,-500.0,0.00013698,2]
[339721037,1727893600513,-500.0,0.00013698,2]
[339721038,1727893600561,-500.0,0.00013698,2]
[339721039,1727893600610,-500.0,0.00013698,2]
[339721040,1727893601727,500.0,0.00013698,2]
[339721041,1727893604242,544.64,0.00013698,2]
[339721042,1727893604390,169.96409514,0.00013698,2]
[339721043,1727893604455,500.0,0.00013698,2]
[339721044,1727893605855,872.73,0.00013698,2]
[339721045,1727893607597,500.0,0.00013698,2]
[339721046,1727893607965,500.0,0.00013698,2]
[339721047,1727893609185,508.95,0.00013698,2]
[339721048,1727893609504,500.0,0.00013698,2]
[339721049,1727893616101,500.0,0.00013698,2]
[339721050,1727893617153,704.88,0.00013698,2]
[339721051,1727893617898,643.58,0.00013698,2]
[339721052,1727893618577,500.0,0.00013698,2]
[339721053,1727893618673,500.0,0.00013698,2]
[339721054,1727893618761,549.42,0.00013698,2]
[339721055,1727893620854,300.0,0.00013698,2]
[339721056,1727893623538,500.0,0.00013698,2]
[339721057,1727893623593,500.0,0.00013698,2]
[339721058,1727893623986,300.0,0.00013698,2]
[339721059,1727893625267,546.9,0.00013698,2]
[339721060,1727893626590,671.32,0.00013698,2]
[339721061,1727893628240,500.0,0.00013698,2]
[339721062,1727893628617,584.27,0.00013698,2]
[339721063,1727893629469,500.0,0.00013698,2]
[339721064,1727893630113,-166.666666,0.00013699,2]
[339721065,1727893630135,-3483.454026,0.00013699,2]
[339721066,1727893630158,-484.141275,0.00013699,2]
[339721067,1727893630183,-500.0,0.000138,2]
[339721068,1727893630205,-150.0,0.00013802,2]
[339721069,1727893630226,-525.0,0.00013802,2]
[339721070,1727893630247,-1217.0,0.00013802,2]
[339721071,1727893630269,-188.80408818,0.00013841,2]
[339721072,1727893630294,-188.80408818,0.00013857,2]
[339721073,1727893630316,-839.5094052,0.00013872,2]
[339721074,1727893630338,-154.0,0.000139,2]
[339721075,1727893630359,-989.19895519,0.0001394,2]
[339721076,1727893630382,-17847.07734411,0.0001394,2]
[339721077,1727893633286,-948.00000001,0.0001394,2]
[339721078,1727893633854,12.19888849,0.00013698,2]
[339721124,1727893832120,-500.0,0.000133,2]
[339721125,1727893832132,-300.0,0.00013697,2]
[339721126,1727893832142,-300.0,0.00013697,2]
[339721127,1727893832153,-659.46597013,0.00013698,2]
[339721128,1727893832165,-487.80111151,0.00013698,2]
[339721129,1727893832175,-500.0,0.00013698,2]
[339721130,1727893832185,-500.0,0.00013698,2]
[339721131,1727893832199,-500.0,0.00013698,2]
[339721132,1727893832208,-627.63,0.00013698,2]
[339721133,1727893832217,-1712.70291836,0.00013698,2]
[339721134,1727893832230,-103.81708164,0.00013698,2]
[339721135,1727893832239,-601.0,0.00013698,2]
[339721136,1727893832248,-815.39,0.00013698,2]
[339721137,1727893832258,-500.0,0.00013698,2]
[339721138,1727893832267,-500.0,0.00013698,2]
[339721139,1727893832277,-500.0,0.00013698,2]
[339721140,1727893832286,-500.0,0.00013698,2]
[339721141,1727893832295,-500.0,0.00013698,2]
[339721142,1727893832305,-2315.93,0.00013698,2]
[339721143,1727893832314,-1058.69,0.00013698,2]
[339721144,1727893832323,-762.88,0.00013698,2]
[339721145,1727893832333,-2544.71,0.00013698,2]
[339721146,1727893832342,-500.0,0.00013698,2]
[339721147,1727893832351,-548.23,0.00013698,2]
[339721148,1727893832360,-500.0,0.00013698,2]
[339721149,1727893832369,-500.0,0.00013698,2]
[339721150,1727893832378,-1541.62,0.00013698,2]
[339721151,1727893832387,-500.0,0.00013698,2]
[339721152,1727893832397,-500.0,0.00013698,2]
[339721153,1727893832406,-500.0,0.00013698,2]
[339721154,1727893832415,-500.0,0.00013698,2]
[339721155,1727893832425,-1282.07,0.00013698,2]
[339721156,1727893832434,-500.0,0.00013698,2]
[339721157,1727893832446,-478.91792328,0.00013698,2]
[339721158,1727893832455,-500.0,0.00013698,2]
[339721159,1727893832464,-1702.5,0.00013698,2]
[339721160,1727893832473,-860.28,0.00013698,2]
[339721161,1727893832483,-2064.77,0.00013698,2]
[339721162,1727893832492,-500.0,0.00013698,2]
[339721163,1727893832501,-19.19499518,0.00013698,2]
[339721313,1727893850847,-480.80500482,0.00013698,2]
[339721314,1727893850857,-583.6,0.00013698,2]
[339721315,1727893850867,-1218.92,0.00013698,2]
[339721316,1727893850877,-500.0,0.00013698,2]
[339721317,1727893850886,-500.0,0.00013698,2]
[339721318,1727893850895,-500.0,0.00013698,2]
[339721319,1727893850905,-500.0,0.00013698,2]
[339721320,1727893850915,-500.0,0.00013698,2]
[339721321,1727893850925,-18.89586422,0.00013698,2]
[339721322,1727893851564,-1004.23999584,0.00013698,2]
[339721323,1727893851576,-1815.82413994,0.00013698,2]
[339721324,1727893851585,-1918.95,0.00013698,2]
[339721325,1727893851594,-500.0,0.00013698,2]
[339721326,1727893851603,-167.256984,0.00013698,2]
[339721327,1727893851613,-500.0,0.00013698,2]
[339721328,1727893851622,-500.0,0.00013698,2]
[339721329,1727893851632,-500.0,0.00013698,2]
[339721330,1727893851640,-182.89430196,0.00013698,2]
[339721331,1727893851650,-550.61,0.00013698,2]
[339721332,1727893851659,-500.0,0.00013698,2]
[339721333,1727893851668,-500.0,0.00013698,2]
[339721334,1727893851677,-500.0,0.00013698,2]
[339721335,1727893851686,-500.0,0.00013698,2]
[339721336,1727893851695,-500.0,0.00013698,2]
[339721337,1727893851705,-500.0,0.00013698,2]
[339721338,1727893851715,-500.0,0.00013698,2]
[339721339,1727893851724,-500.0,0.00013698,2]
[339721340,1727893851733,-181.59684732,0.00013698,2]
[339721341,1727893851742,-500.0,0.00013698,2]
[339721342,1727893851752,-500.0,0.00013698,2]
[339721343,1727893851761,-500.0,0.00013698,2]
[339721344,1727893851770,-384.97055223,0.00013698,2]
[339721345,1727893851780,-500.0,0.00013698,2]
[339721346,1727893851789,-713.57,0.00013698,2]
[339721347,1727893851798,-959.64,0.00013698,2]
[339721348,1727893851952,-500.0,0.00013698,2]
[339721349,1727893851963,-500.0,0.00013698,2]
[339721350,1727893851972,-500.0,0.00013698,2]
[339721351,1727893851981,-500.0,0.00013698,2]
[339721352,1727893851990,-500.0,0.00013698,2]
[339721353,1727893852001,-500.0,0.00013698,2]
[339721354,1727893852012,-500.0,0.00013698,2]
[339721355,1727893852022,-720.42,0.00013698,2]
[339721356,1727893852033,-500.0,0.00013698,2]
[339721357,1727893852046,-500.0,0.00013698,2]
[339721358,1727893852055,-500.0,0.00013698,2]
[339721359,1727893852065,-581.41,0.00013698,2]
[339721360,1727893852079,-500.0,0.00013698,2]
[339721361,1727893852090,-500.0,0.00013698,2]
[339721362,1727893852101,-500.0,0.00013698,2]
[339721363,1727893852113,-749.89,0.00013698,2]
[339721364,1727893852124,-2031.82,0.00013698,2]
[339721365,1727893852134,-1003.89,0.00013698,2]
[339721366,1727893852144,-500.0,0.00013698,2]
[339721367,1727893852153,-500.0,0.00013698,2]
[339721368,1727893852162,-500.0,0.00013698,2]
[339721369,1727893852172,-606.43,0.00013698,2]
[339721370,1727893852181,-844.55,0.00013698,2]
[339721371,1727893852191,-500.0,0.00013698,2]
[339721372,1727893852200,-500.0,0.00013698,2]
[339721373,1727893852214,-500.0,0.00013698,2]
[339721374,1727893852233,-500.0,0.00013698,2]
[339721375,1727893852242,-549.01,0.00013698,2]
[339721376,1727893852252,-500.0,0.00013698,2]
[339721377,1727893852262,-334.66172764,0.00013698,2]
[339721378,1727893852271,-902.03,0.00013698,2]
[339721379,1727893852281,-500.0,0.00013698,2]
[339721380,1727893852291,-749.48,0.00013698,2]
[339721381,1727893852300,-500.0,0.00013698,2]
[339721382,1727893852309,-500.0,0.00013698,2]
[339721383,1727893852319,-500.0,0.00013698,2]
[339721384,1727893852328,-500.0,0.00013698,2]
[339721385,1727893852337,-500.0,0.00013698,2]
[339721386,1727893852346,-500.0,0.00013698,2]
[339721387,1727893852356,-500.0,0.00013698,2]
[339721388,1727893852365,-500.0,0.00013698,2]
[339721389,1727893852376,-500.0,0.00013698,2]
[339721390,1727893852385,-500.0,0.00013698,2]
[339721391,1727893852394,-500.0,0.00013698,2]
[339721392,1727893852404,-500.0,0.00013698,2]
[339721393,1727893852413,-500.0,0.00013698,2]
[339721394,1727893852422,-848.26,0.00013698,2]
[339721395,1727893852431,-788.4,0.00013698,2]
[339721396,1727893852441,-500.0,0.00013698,2]
[339721397,1727893852451,-693.64,0.00013698,2]
[339721398,1727893852468,-186.91303286,0.00013698,2]
[339721399,1727893852477,-735.86,0.00013698,2]
[339721400,1727893852487,-500.0,0.00013698,2]
[339721401,1727893852496,-500.0,0.00013698,2]
[339721402,1727893852506,-427.33,0.00013698,2]
[339721403,1727893852514,-500.0,0.00013698,2]
[339721404,1727893852524,-500.0,0.00013698,2]
[339721405,1727893852533,-500.0,0.00013698,2]
[339721406,1727893852542,-500.0,0.00013698,2]
[339721407,1727893852551,-500.0,0.00013698,2]
[339721408,1727893852560,-500.0,0.00013698,2]
[339721409,1727893852569,-500.0,0.00013698,2]
[339721410,1727893852579,-500.0,0.00013698,2]
[339721411,1727893852588,-20336.16,0.00013698,2]
[339721412,1727893852598,-500.0,0.00013698,2]
[339721413,1727893852607,-500.0,0.00013698,2]
[339721414,1727893852616,-539.4,0.00013698,2]
[339721415,1727893852625,-503.34302956,0.00013698,2]
[339721416,1727893852634,-3255.12,0.00013698,2]
[339721417,1727893852643,-500.0,0.00013698,2]
[339721418,1727893852652,-500.0,0.00013698,2]
[339721419,1727893852661,-946.94,0.00013698,2]
[339721420,1727893852671,-500.0,0.00013698,2]
[339721421,1727893852680,-1329.23,0.00013698,2]
[339721422,1727893852689,-500.0,0.00013698,2]
[339721423,1727893852698,-532.66,0.00013698,2]
[339721424,1727893852708,-589.84,0.00013698,2]
[339721425,1727893852717,-930.85,0.00013698,2]
[339721426,1727893852727,-500.0,0.00013698,2]
[339721427,1727893852736,-500.0,0.00013698,2]
[339721428,1727893852746,-500.0,0.00013698,2]
[339721429,1727893852756,-500.0,0.00013698,2]
[339721430,1727893852765,-500.0,0.00013698,2]
[339721431,1727893852774,-2023.77,0.00013698,2]
[339721432,1727893852784,-519.25957553,0.00013698,2]
[339721433,1727893852794,-500.0,0.00013698,2]
[339721434,1727893852803,-500.0,0.00013698,2]
[339721435,1727893852813,-500.0,0.00013698,2]
[339721436,1727893852822,-1430.18,0.00013698,2]
[339721437,1727893852831,-527.08729782,0.00013698,2]
[339721438,1727893852841,-500.0,0.00013698,2]
[339721439,1727893852851,-932.34,0.00013698,2]
[339721440,1727893852861,-500.0,0.00013698,2]
[339721441,1727893852870,-500.0,0.00013698,2]
[339721442,1727893852879,-500.0,0.00013698,2]
[339721443,1727893852888,-500.0,0.00013698,2]
[339721444,1727893852897,-500.0,0.00013698,2]
[339721445,1727893852906,-500.0,0.00013698,2]
[339721446,1727893852916,-3177.61,0.00013698,2]
[339721447,1727893852925,-501.65418803,0.00013698,2]
[339721448,1727893852934,-500.0,0.00013698,2]
[339721449,1727893852943,-824.67,0.00013698,2]
[339721450,1727893852953,-731.32,0.00013698,2]
[339721451,1727893852967,-500.0,0.00013698,2]
[339721452,1727893852976,-530.77,0.00013698,2]
[339721453,1727893852985,-500.0,0.00013698,2]
[339721454,1727893852994,-500.0,0.00013698,2]
[339721455,1727893853007,-500.0,0.00013698,2]
[339721456,1727893853016,-1025.66,0.00013698,2]
[339721457,1727893853026,-500.0,0.00013698,2]
[339721458,1727893853037,-500.0,0.00013698,2]
[339721459,1727893853047,-2219.43,0.00013698,2]
[339721460,1727893853056,-500.0,0.00013698,2]
[339721461,1727893853067,-500.0,0.00013698,2]
[339721462,1727893853077,-166.666666,0.00013699,2]
[339721463,1727893853086,-2322.302684,0.00013699,2]
[339721464,1727893853096,-242.070638,0.00013699,2]
[339721465,1727893853106,-804.0,0.000138,2]
[339721466,1727893853115,-500.0,0.00013931,2]
[339721467,1727893853125,-196.49326061,0.00013931,2]
[339721468,1727893853134,-378.05453151,0.00013931,2]
[339721469,1727893853143,-523.09458514,0.00013931,2]
[339721470,1727893853153,-535.66407327,0.00013931,2]
[339721471,1727893853163,-500.0,0.00013931,2]
[339721472,1727893853172,-521.93717053,0.00013931,2]
[339721473,1727893853181,-47210.4397373,0.00013932,2]
[339721474,1727893853192,-34822.6305098,0.00013932,2]
[339721475,1727893853201,-47210.4397373,0.00013932,2]
[339721476,1727893853213,-34822.6305098,0.00013932,2]
[339721477,1727893853223,-414.23704218,0.00013936,2]
[339721478,1727893853232,-500.0,0.00013939,2]
[339721479,1727893853242,-500.0,0.00013939,2]
[339721480,1727893853251,-500.0,0.00013939,2]
[339721481,1727893853260,-500.0,0.00013939,2]
[339721482,1727893853270,-44427.85984701,0.00013942,2]
[339721483,1727893853587,-517.21119377,0.00013698,2]
[339721484,1727893853597,-2782.57989029,0.00013942,2]
[339721485,1727893853605,-1500.20891594,0.00013942,2]
[339721486,1727893853756,-169.99973586,0.00013942,2]
[339721487,1727893853768,-6369.0,0.00013942,2]
[339721488,1727893854696,-500.0,0.00013698,2]
[339721489,1727893854706,-500.0,0.00013698,2]
[339721490,1727893854716,-500.0,0.00013698,2]
[339721491,1727893854725,-1470.40620532,0.00013942,2]
[339721492,1727893854737,-14492.64,0.00013942,2]
[339721493,1727893854806,-2694.36414954,0.00013942,2]
[339721494,1727893854818,-8126.01150314,0.00013942,2]
[339721495,1727893854827,-850.71591535,0.00013942,2]
[339721496,1727893938236,500.0,0.00011506,2]
[339721498,1727894227427,-300.0,0.00012308,2]
[339721499,1727894227469,-300.0,0.00012308,2]
[339721500,1727894227508,-24900.0,0.00012309,2]
[339721501,1727894227546,-291.7453574,0.0001291,2]
[339721502,1727894227587,-250.0,0.00012914,2]
[339721503,1727894227627,-250.0,0.0001295,2]
[339721504,1727894227667,-250.0,0.00012985,2]
[339721505,1727894273828,-250.0,0.00013021,2]
[339721506,1727894273867,-250.0,0.00013056,2]
[339721507,1727894273905,-250.0,0.00013092,2]
[339721508,1727894273942,-250.0,0.00013127,2]
[339721509,1727894273979,-250.0,0.00013162,2]
[339721510,1727894274019,-250.0,0.00013198,2]
[339721511,1727894274060,-250.0,0.00013233,2]
[339721512,1727894274099,-250.0,0.00013269,2]
[339721513,1727894274139,-250.0,0.00013304,2]
[339721514,1727894274180,-250.0,0.00013339,2]
[339721515,1727894274218,-250.0,0.00013375,2]
[339721516,1727894274436,-250.0,0.0001341,2]
[339721517,1727894274477,-250.0,0.00013446,2]
[339721518,1727894274516,-250.0,0.00013481,2]
[339721519,1727894274556,-420.0,0.00013508,2]
[339721520,1727894274594,-250.0,0.00013517,2]
[339721521,1727894274632,-775.29206904,0.00013539,2]
[339721522,1727894274669,-420.0,0.00013539,2]
[339721523,1727894274713,-250.0,0.00013552,2]
[339721524,1727894274754,-250.0,0.00013587,2]
[339721525,1727894274797,-453.12981168,0.00013598,2]
[339721526,1727894274834,-453.12981165,0.00013659,2]
[339721527,1727894274874,-500.0,0.00013698,2]
[339721528,1727894274914,-500.0,0.00013698,2]
[339721529,1727894274959,-500.0,0.00013698,2]
[339721530,1727894274999,-571.17968517,0.00013698,2]
[339721531,1727894275040,-500.0,0.00013698,2]
[339721532,1727894275078,-558.69081154,0.00013698,2]
[339721533,1727894275123,-500.0,0.00013698,2]
[339721534,1727894275166,-500.0,0.00013698,2]
[339721535,1727894275208,-500.0,0.00013698,2]
[339721536,1727894275246,-500.0,0.00013698,2]
[339721537,1727894275287,-500.0,0.00013698,2]
[339721538,1727894275325,-506.74383691,0.00013698,2]
[339721539,1727894275365,-550.695526,0.00013698,2]
[339721540,1727894275403,-500.0,0.00013698,2]
[339721541,1727894275441,-500.0,0.00013698,2]
[339721542,1727894275479,-690.63,0.00013698,2]
[339721543,1727894275518,-500.0,0.00013698,2]
[339721544,1727894275560,-500.0,0.00013698,2]
[339721545,1727894275600,-500.0,0.00013698,2]
[339721546,1727894275639,-500.0,0.00013698,2]
[339721547,1727894275676,-584.05,0.00013698,2]
[339721548,1727894275716,-500.0,0.00013698,2]
[339721549,1727894275757,-500.0,0.00013698,2]
[339721550,1727894275795,-825.82,0.00013698,2]
[339721551,1727894275833,-500.0,0.00013698,2]
[339721552,1727894275874,-615.93499479,0.00013698,2]
[339721553,1727894275913,-651.23,0.00013698,2]
[339721554,1727894275949,-500.0,0.00013698,2]
[339721555,1727894275986,-500.0,0.00013698,2]
[339721556,1727894276023,-500.0,0.00013698,2]
[339721557,1727894276069,-500.0,0.00013698,2]
[339721558,1727894276109,-500.0,0.00013698,2]
[339721559,1727894276153,-500.0,0.00013698,2]
[339721560,1727894276195,-500.0,0.00013698,2]
[339721561,1727894276237,-500.0,0.00013698,2]
[339721562,1727894276272,-500.0,0.00013698,2]
[339721563,1727894276310,-594.27,0.00013698,2]
[339721564,1727894276346,-780.86,0.00013698,2]
[339721565,1727894276384,-500.0,0.00013698,2]
[339721566,1727894276424,-878.1,0.00013698,2]
[339721567,1727894276465,-500.0,0.00013698,2]
[339721568,1727894276504,-500.0,0.00013698,2]
[339721569,1727894276543,-500.0,0.00013698,2]
[339721570,1727894276581,-500.0,0.00013698,2]
[339721571,1727894276619,-500.0,0.00013698,2]
[339721572,1727894276658,-500.0,0.00013698,2]
[339721573,1727894276693,-500.0,0.00013698,2]
[339721574,1727894276727,-500.0,0.00013698,2]
[339721575,1727894276762,-500.0,0.00013698,2]
[339721576,1727894276798,-500.0,0.00013698,2]
[339721577,1727894276832,-500.0,0.00013698,2]
[339721578,1727894276870,-1117.7,0.00013698,2]
[339721579,1727894276907,-500.0,0.00013698,2]
[339721580,1727894276942,-500.0,0.00013698,2]
[339721581,1727894276976,-500.0,0.00013698,2]
[339721582,1727894277014,-500.0,0.00013698,2]
[339721583,1727894277051,-500.0,0.00013698,2]
[339721584,1727894277089,-977.48,0.00013698,2]
[339721585,1727894277129,-535.63207157,0.00013698,2]
[339721586,1727894277167,-500.0,0.00013698,2]
[339721587,1727894277205,-500.0,0.00013698,2]
[339721588,1727894277242,-500.0,0.00013698,2]
[339721589,1727894277278,-500.0,0.00013698,2]
[339721590,1727894277319,-655.56,0.00013698,2]
[339721591,1727894277357,-500.0,0.00013698,2]
[339721592,1727894277394,-225.21203693,0.00013698,2]
[339721593,1727894277432,-500.0,0.00013698,2]
[339721594,1727894277468,-500.0,0.00013698,2]
[339721595,1727894277503,-500.0,0.00013698,2]
[339721596,1727894277540,-618.7,0.00013698,2]
[339721597,1727894277575,-531.76,0.00013698,2]
[339721598,1727894277613,-500.0,0.00013698,2]
[339721599,1727894277653,-500.0,0.00013698,2]
[339721600,1727894277693,-500.0,0.00013698,2]
[339721601,1727894277733,-500.0,0.00013698,2]
[339721602,1727894277771,-500.0,0.00013698,2]
[339721603,1727894277811,-811.48,0.00013698,2]
[339721604,1727894277853,-500.0,0.00013698,2]
[339721605,1727894277896,-500.0,0.00013698,2]
[339721606,1727894277941,-1010.74,0.00013698,2]
[339721607,1727894277978,-620.35144194,0.00013698,2]
[339721608,1727894278017,-266.39596248,0.00013698,2]
[339721609,1727894278060,-641.77769039,0.00013698,2]
[339721610,1727894278100,-500.0,0.00013698,2]
[339721611,1727894278141,-568.74,0.00013698,2]
[339721612,1727894278182,-500.0,0.00013698,2]
[339721613,1727894278220,-500.0,0.00013698,2]
[339721614,1727894278258,-970.37,0.00013698,2]
[339721615,1727894278294,-500.0,0.00013698,2]
[339721616,1727894278331,-518.09,0.00013698,2]
[339721617,1727894278369,-500.0,0.00013698,2]
[339721618,1727894278406,-500.0,0.00013698,2]
[339721619,1727894278443,-500.0,0.00013698,2]
[339721620,1727894278480,-500.0,0.00013698,2]
[339721621,1727894278520,-500.0,0.00013698,2]
[339721622,1727894278560,-668.12,0.00013698,2]
[339721623,1727894278597,-500.0,0.00013698,2]
[339721624,1727894278633,-526.91,0.00013698,2]
[339721625,1727894278670,-993.64,0.00013698,2]
[339721626,1727894278705,-500.0,0.00013698,2]
[339721627,1727894278901,-500.0,0.00013698,2]
[339721628,1727894278939,-575.03096317,0.00013698,2]
[339721629,1727894278976,-500.0,0.00013698,2]
[339721630,1727894279013,-500.0,0.00013698,2]
[339721631,1727894279050,-500.0,0.00013698,2]
[339721632,1727894279086,-500.0,0.00013698,2]
[339721633,1727894279123,-500.0,0.00013698,2]
[339721634,1727894279165,-500.0,0.00013698,2]
[339721635,1727894279211,-500.0,0.00013698,2]
[339721636,1727894279248,-500.0,0.00013698,2]
[339721637,1727894279288,-500.0,0.00013698,2]
[339721638,1727894279335,-500.0,0.00013698,2]
[339721639,1727894279376,-500.0,0.00013698,2]
[339721640,1727894279416,-1000.0,0.00013698,2]
[339721641,1727894279457,-975.22,0.00013698,2]
[339721642,1727894279498,-500.0,0.00013698,2]
[339721643,1727894279540,-504.73061629,0.00013698,2]
[339721644,1727894279588,-664.74,0.00013698,2]
[339721645,1727894279630,-500.0,0.00013698,2]
[339721646,1727894279671,-500.0,0.00013698,2]
[339721647,1727894279711,-500.0,0.00013698,2]
[339721648,1727894279750,-500.0,0.00013698,2]
[339721649,1727894279795,-500.0,0.00013698,2]
[339721650,1727894279831,-500.0,0.00013698,2]
[339721651,1727894279866,-500.0,0.00013698,2]
[339721652,1727894279903,-500.0,0.00013698,2]
[339721653,1727894279939,-500.0,0.00013698,2]
[339721654,1727894279975,-500.0,0.00013698,2]
[339721655,1727894280012,-500.0,0.00013698,2]
[339721656,1727894280057,-500.0,0.00013698,2]
[339721657,1727894280100,-500.0,0.00013698,2]
[339721658,1727894280138,-500.0,0.00013698,2]
[339721659,1727894280179,-500.0,0.00013698,2]
[339721660,1727894280218,-510.47,0.00013698,2]
[339721661,1727894280256,-500.0,0.00013698,2]
[339721662,1727894280295,-637.49,0.00013698,2]
[339721663,1727894280335,-668.45,0.00013698,2]
[339721664,1727894280376,-500.0,0.00013698,2]
[339721665,1727894280415,-500.0,0.00013698,2]
[339721666,1727894280453,-500.0,0.00013698,2]
[339721667,1727894280492,-500.0,0.00013698,2]
[339721668,1727894280533,-655.16,0.00013698,2]
[339721669,1727894280579,-554.28,0.00013698,2]
[339721670,1727894280619,-544.37,0.00013698,2]
[339721671,1727894280662,-500.0,0.00013698,2]
[339721672,1727894280701,-500.0,0.00013698,2]
[339721673,1727894280740,-506.55,0.00013698,2]
[339721674,1727894280784,-500.0,0.00013698,2]
[339721675,1727894280834,-500.0,0.00013698,2]
[339721676,1727894280872,-257.11723532,0.00013698,2]
[339721677,1727894280911,-500.0,0.00013698,2]
[339721678,1727894280953,-500.0,0.00013698,2]
[339721679,1727894280994,-500.0,0.00013698,2]
[339721680,1727894281033,-500.0,0.00013698,2]
[339721681,1727894281082,-616.76,0.00013698,2]
[339721682,1727894281121,-500.0,0.00013698,2]
[339721683,1727894281166,-500.0,0.00013698,2]
[339721684,1727894281210,-603.89825986,0.00013698,2]
[339721685,1727894281260,-500.0,0.00013698,2]
[339721686,1727894281302,-500.0,0.00013698,2]
[339721687,1727894281353,-500.0,0.00013698,2]
[339721688,1727894281400,-500.0,0.00013698,2]
[339721689,1727894281449,-500.0,0.00013698,2]
[339721690,1727894281491,-942.34,0.00013698,2]
[339721691,1727894281534,-500.0,0.00013698,2]
[339721692,1727894281586,-500.0,0.00013698,2]
[339721693,1727894281628,-500.0,0.00013698,2]
[339721694,1727894281670,-500.0,0.00013698,2]
[339721695,1727894281720,-500.0,0.00013698,2]
[339721696,1727894281765,-521.06,0.00013698,2]
[339721697,1727894281806,-500.0,0.00013698,2]
[339721698,1727894281849,-500.0,0.00013698,2]
[339721699,1727894281890,-500.0,0.00013698,2]
[339721700,1727894281935,-500.0,0.00013698,2]
[339721701,1727894281985,-836.37,0.00013698,2]
[339721702,1727894282026,-500.0,0.00013698,2]